fUST/lending_fUST_20240910
["ID","MTS","AMOUNT","RATE_DAILY","PERIOD"]
[337645270,1725906632249,-1500.0,0.000308,2]
[337645271,1725906632258,-400.0,0.00030962,2]
[337645272,1725906632267,-168.333084,0.00030963,2]
[337645273,1725906632276,-165.0,0.00030978,2]
[337645274,1725906632286,-2296.96074707,0.00030978,2]
[337645315,1725906639848,-22603.03925293,0.00030978,2]
[337645316,1725906639858,-1500.0,0.000316,2]
[337645317,1725906639868,-166.666673,0.00031741,2]
[337645319,1725906639877,-2908.416645,0.00031756,2]
[337645320,1725906639886,-1500.0,0.000324,2]
[337645321,1725906639896,-166.666673,0.00032567,2]
[337645323,1725906639909,-500.0,0.00032877,2]
[337645325,1725906639918,-1219.12026453,0.000332,2]
[337645327,1725906639927,-208.2649181,0.00033333,2]
[337645329,1725906639937,-166.666673,0.00033394,2]
[337645331,1725906639947,-10528.52026012,0.00033621,2]
[337645333,1725906639958,-351.44226861,0.00033625,2]
[337645335,1725906639969,-1000.0,0.00033632,2]
[337645337,1725906639979,-150.01,0.00033677,2]
[337645339,1725906639988,-7119.59524951,0.00033677,2]
[337645341,1725906639998,-238.06,0.00033696,3]
[337645343,1725906640008,-228.27028467,0.00033705,7]
[337645345,1725906640017,-500.0,0.00033705,7]
[337645347,1725906640027,-500.0,0.00033705,7]
[337645349,1725906640036,-500.0,0.00033705,7]
[337645351,1725906640045,-500.0,0.00033705,7]
[337645353,1725906640054,-500.0,0.00033705,7]
[337645355,1725906640063,-500.0,0.00033705,7]
[337645357,1725906640073,-500.0,0.00033705,7]
[337645358,1725906640083,-500.0,0.00033705,7]
[337645360,1725906640092,-500.0,0.00033705,7]
[337645362,1725906640101,-500.0,0.00033705,7]
[337645365,1725906640111,-500.0,0.00033705,7]
[337645366,1725906640120,-500.0,0.00033705,7]
[337645368,1725906640129,-500.0,0.00033705,7]
[337645370,1725906640138,-500.0,0.00033705,7]
[337645372,1725906640148,-500.0,0.00033705,7]
[337645374,1725906640157,-500.0,0.00033705,7]
[337645376,1725906640166,-500.0,0.00033705,7]
[337645378,1725906640175,-500.0,0.00033705,7]
[337645380,1725906640185,-500.0,0.00033705,7]
[337645382,1725906640195,-500.0,0.00033705,7]
[337645384,1725906640205,-500.0,0.00033705,7]
[337645386,1725906640214,-500.0,0.00033705,7]
[337645388,1725906640224,-500.0,0.00033705,7]
[337645390,1725906640233,-500.0,0.00033705,7]
[337645392,1725906640242,-511.00541296,0.00033705,7]
[337645394,1725906640251,-500.0,0.00033705,7]
[337645396,1725906640260,-500.0,0.00033705,7]
[337645397,1725906640270,-500.0,0.00033705,7]
[337645399,1725906640279,-500.0,0.00033705,7]
[337645400,1725906640289,-500.0,0.00033705,7]
[337645401,1725906640298,-500.0,0.00033705,7]
[337645402,1725906640308,-500.0,0.00033705,7]
[337645403,1725906640317,-500.0,0.00033705,7]
[337645404,1725906640326,-553.7358282,0.00033705,7]
[337645405,1725906640336,-500.0,0.00033705,7]
[337645406,1725906640346,-500.0,0.00033705,7]
[337645407,1725906640356,-500.0,0.00033705,7]
[337645408,1725906640366,-500.0,0.00033705,7]
[337645409,1725906640375,-500.0,0.00033705,7]
[337645410,1725906640385,-500.0,0.00033705,7]
[337645411,1725906640394,-500.0,0.00033705,7]
[337645412,1725906640403,-500.0,0.00033705,7]
[337645413,1725906640412,-500.0,0.00033705,7]
[337645414,1725906640422,-500.0,0.00033705,7]
[337645415,1725906640607,-500.0,0.00033705,7]
[337645416,1725906640617,-500.0,0.00033705,7]
[337645417,1725906640626,-500.0,0.00033705,7]
[337645418,1725906640635,-500.0,0.00033705,7]
[337645419,1725906640645,-500.0,0.00033705,7]
[337645420,1725906640655,-500.0,0.00033705,7]
[337645421,1725906640665,-215.57058311,0.00033705,7]
[337645422,1725906640676,-500.0,0.00033705,7]
[337645423,1725906640685,-500.0,0.00033705,7]
[337645424,1725906640694,-500.0,0.00033705,7]
[337645425,1725906640705,-500.0,0.00033705,7]
[337645426,1725906640715,-500.0,0.00033705,7]
[337645427,1725906640725,-500.0,0.00033705,7]
[337645428,1725906640735,-17920.18759492,0.00033705,21]
[337645429,1725906640745,-15080.66659429,0.00033706,2]
[337645467,1725906645800,-198.38,0.00033696,3]
[337645468,1725906645810,-366.22,0.00033706,2]
[337645495,1725907831933,-1500.0,0.0003,2]
[337645497,1725907831946,-218.37355611,0.00030732,2]
[337645500,1725907831963,-109.85377589,0.00030732,2]
[337645502,1725907831976,-971.61236307,0.0003095,2]
[337645505,1725907831991,-1936.80428193,0.0003095,2]
[337645507,1725907832004,-400.0,0.00030974,2]
[337645509,1725907832016,-332.0,0.00030975,2]
[337645512,1725907832029,-1478.41527403,0.00030975,2]
[337645516,1725907832044,-496.17121722,0.00030975,2]
[337645519,1725907832060,-596.02696035,0.00030975,2]
[337645532,1725907840076,-22329.3865484,0.00030975,2]
[337645533,1725907840087,-1500.0,0.00031,2]
[337645534,1725907840096,-166.757036,0.00031068,2]
[337645535,1725907840106,-166.666673,0.00031362,2]
[337645536,1725907840116,-1500.0,0.00032,2]
[337645537,1725907840125,-166.666673,0.00032179,2]
[337645538,1725907840135,-500.0,0.00032877,2]
[337645539,1725907840144,-166.666673,0.00032996,2]
[337645540,1725907840154,-822.32554751,0.00033,2]
[337645541,1725907840164,-205.0,0.00033509,3]
[337645542,1725907840174,-170.83,0.00033509,3]
[337645543,1725907840184,-10528.52026012,0.00033518,2]
[337645544,1725907840194,-500.0,0.00033518,7]
[337645545,1725907840204,-500.0,0.00033518,7]
[337645546,1725907840215,-500.0,0.00033518,7]
[337645547,1725907840225,-500.0,0.00033518,7]
[337645548,1725907840235,-500.0,0.00033518,7]
[337645549,1725907840245,-500.0,0.00033518,7]
[337645550,1725907840255,-500.0,0.00033518,7]
[337645551,1725907840264,-500.0,0.00033518,7]
[337645552,1725907840274,-500.0,0.00033518,7]
[337645553,1725907840287,-500.0,0.00033518,7]
[337645554,1725907840298,-500.0,0.00033518,7]
[337645555,1725907840308,-500.0,0.00033518,7]
[337645556,1725907840319,-500.0,0.00033518,7]
[337645557,1725907840331,-500.0,0.00033518,7]
[337645558,1725907840346,-500.0,0.00033518,7]
[337645559,1725907840358,-500.0,0.00033518,7]
[337645560,1725907840368,-500.0,0.00033518,7]
[337645561,1725907840378,-500.0,0.00033518,7]
[337645562,1725907840390,-553.7358282,0.00033518,7]
[337645563,1725907840401,-500.0,0.00033518,7]
[337645564,1725907840411,-500.0,0.00033518,7]
[337645565,1725907840421,-500.0,0.00033518,7]
[337645566,1725907840431,-500.0,0.00033518,7]
[337645567,1725907840442,-500.0,0.00033518,7]
[337645568,1725907840452,-500.0,0.00033518,7]
[337645569,1725907840462,-500.0,0.00033518,7]
[337645570,1725907840472,-500.0,0.00033518,7]
[337645571,1725907840482,-500.0,0.00033518,7]
[337645572,1725907840492,-500.0,0.00033518,7]
[337645573,1725907840502,-500.0,0.00033518,7]
[337645574,1725907840512,-500.0,0.00033518,7]
[337645575,1725907840522,-500.0,0.00033518,7]
[337645576,1725907840531,-500.0,0.00033518,7]
[337645577,1725907840541,-500.0,0.00033518,7]
[337645578,1725907840550,-500.0,0.00033518,7]
[337645579,1725907840561,-500.0,0.00033518,7]
[337645580,1725907840571,-500.0,0.00033518,7]
[337645581,1725907840582,-500.0,0.00033518,7]
[337645582,1725907840592,-500.0,0.00033518,7]
[337645583,1725907840602,-500.0,0.00033518,7]
[337645584,1725907840613,-500.0,0.00033518,7]
[337645585,1725907840623,-10528.5202601,0.00033519,2]
[337645586,1725907840633,-17920.18759492,0.00033519,21]
[337645587,1725907840804,-2007.60282877,0.00033519,2]
[337645599,1725907843040,-1015.98291292,0.00033519,2]
[337645624,1725908724797,713.46,0.00025,2]
[337645699,1725909032518,-164.113666,0.0002866,2]
[337645701,1725909032530,-166.666673,0.00028769,2]
[337645704,1725909032540,-166.757036,0.00029011,2]
[337645706,1725909032552,-166.666673,0.00029519,2]
[337645708,1725909032563,-886.58450936,0.0003,2]
[337645709,1725909032575,-570.27965005,0.0003,2]
[337645710,1725909032587,-43.13584059,0.0003,2]
[337645711,1725909032597,-320.0,0.00030162,2]
[337645712,1725909032607,-24900.0,0.00030163,2]
[337645713,1725909032617,-166.666673,0.00030268,2]
[337645714,1725909032626,-1500.0,0.00031333,2]
[337645715,1725909032636,-822.32554751,0.00032667,2]
[337645716,1725909032647,-500.0,0.00032877,2]
[337645717,1725909032657,-2246.46648626,0.00033242,2]
[337645718,1725909032671,-153.0,0.00033342,2]
[337645719,1725909032681,-153.0,0.00033342,2]
[337645720,1725909032691,-153.0,0.00033342,2]
[337645721,1725909032701,-153.0,0.00033342,2]
[337645722,1725909032711,-10325.32367752,0.00033372,2]
[337645723,1725909032721,-205.0,0.00033375,3]
[337645724,1725909032732,-10325.32367752,0.00033376,2]
[337645725,1725909032744,-10325.32367752,0.0003338,2]
[337645726,1725909032754,-10325.32367752,0.00033383,2]
[337645727,1725909032763,-50938.69684815,0.00033384,2]
[337645793,1725909038325,-453.39978958,0.00033384,21]
[337645794,1725909038337,-17466.78780534,0.00033384,21]
[337645795,1725909038347,-174882.43525921,0.00033384,2]
[337645828,1725909040374,-48747.42438264,0.00033384,2]
[337645830,1725909040385,-500.0,0.00033385,7]
[337645832,1725909040395,-500.0,0.00033385,7]
[337645834,1725909040405,-228.27028467,0.00033385,7]
[337645836,1725909040416,-500.0,0.00033385,7]
[337645838,1725909040426,-500.0,0.00033385,7]
[337645840,1725909040436,-500.0,0.00033385,7]
[337645842,1725909040446,-500.0,0.00033385,7]
[337645843,1725909040456,-500.0,0.00033385,7]
[337645845,1725909040465,-500.0,0.00033385,7]
[337645847,1725909040474,-500.0,0.00033385,7]
[337645849,1725909040484,-500.0,0.00033385,7]
[337645851,1725909040493,-500.0,0.00033385,7]
[337645852,1725909040503,-500.0,0.00033385,7]
[337645854,1725909040513,-500.0,0.00033385,7]
[337645856,1725909040523,-500.0,0.00033385,7]
[337645858,1725909040532,-500.0,0.00033385,7]
[337645860,1725909040542,-500.0,0.00033385,7]
[337645862,1725909040552,-500.0,0.00033385,7]
[337645864,1725909040563,-500.0,0.00033385,7]
[337645866,1725909040573,-500.0,0.00033385,7]
[337645868,1725909040583,-511.00541296,0.00033385,7]
[337645870,1725909040594,-500.0,0.00033385,7]
[337645872,1725909040604,-500.0,0.00033385,7]
[337645874,1725909040615,-500.0,0.00033385,7]
[337645876,1725909040625,-500.0,0.00033385,7]
[337645877,1725909040635,-500.0,0.00033385,7]
[337645879,1725909040644,-500.0,0.00033385,7]
[337645881,1725909040654,-500.0,0.00033385,7]
[337645883,1725909040667,-500.0,0.00033385,7]
[337645885,1725909040678,-500.0,0.00033385,7]
[337645887,1725909040687,-500.0,0.00033385,7]
[337645888,1725909040697,-500.0,0.00033385,7]
[337645890,1725909040707,-500.0,0.00033385,7]
[337645892,1725909040718,-500.0,0.00033385,7]
[337645894,1725909040727,-500.0,0.00033385,7]
[337645896,1725909040738,-500.0,0.00033385,7]
[337645898,1725909040748,-500.0,0.00033385,7]
[337645900,1725909040759,-553.7358282,0.00033385,7]
[337645901,1725909040768,-500.0,0.00033385,7]
[337645903,1725909040779,-500.0,0.00033385,7]
[337645905,1725909040789,-500.0,0.00033385,7]
[337645907,1725909040799,-500.0,0.00033385,7]
[337645909,1725909040809,-500.0,0.00033385,7]
[337645911,1725909040819,-500.0,0.00033385,7]
[337645913,1725909040829,-500.0,0.00033385,7]
[337645915,1725909040839,-500.0,0.00033385,7]
[337645916,1725909040849,-500.0,0.00033385,7]
[337645918,1725909040859,-396.52417583,0.00033385,7]
[337645920,1725909040870,-500.0,0.00033385,7]
[337645922,1725909040880,-500.0,0.00033385,7]
[337645924,1725909040890,-500.0,0.00033385,7]
[337645926,1725909040899,-500.0,0.00033385,7]
[337645944,1725909041095,-500.0,0.00033385,7]
[337645946,1725909041109,-500.0,0.00033385,7]
[337645948,1725909041119,-500.0,0.00033385,7]
[337645950,1725909041130,-500.0,0.00033385,7]
[337645952,1725909041140,-479.321179,0.00033386,14]
[337645954,1725909041150,-479.321179,0.00033386,14]
[337645956,1725909041160,-479.321179,0.00033386,14]
[337645958,1725909041171,-479.321179,0.00033386,14]
[337645960,1725909041180,-213.508299,0.00033386,14]
[337645961,1725909041190,-213.508299,0.00033386,14]
[337645963,1725909041199,-151.975802,0.00033386,14]
[337645965,1725909041209,-213.508299,0.00033386,14]
[337645967,1725909041219,-213.508299,0.00033386,14]
[337645969,1725909041228,-151.0,0.00033386,14]
[337645971,1725909041238,-151.0,0.00033386,14]
[337645972,1725909041247,-328.29015309,0.00033386,7]
[337645974,1725909041257,-177.67601495,0.00033386,7]
[337645976,1725909041267,-212.86892283,0.00033386,7]
[337645978,1725909041277,-500.0,0.00033386,7]
[337645980,1725909041288,-500.0,0.00033386,7]
[337645982,1725909041298,-351.44226861,0.00033387,2]
[337645984,1725909041309,-7500.33476524,0.00033387,2]
[337647845,1725910123290,956.18530307,0.0002509,2]
[337647876,1725910232319,-182.298338,0.00028667,2]
[337647878,1725910232329,-1068.43390494,0.0003,5]
[337647879,1725910232338,-380.08437642,0.0003,2]
[337647883,1725910232392,-1119.91562358,0.0003,2]
[337647884,1725910232402,-190.0925101,0.00030026,2]
[337647885,1725910232411,-250.0,0.00030095,2]
[337647886,1725910232422,-400.0,0.00030106,2]
[337647887,1725910232431,-165.0,0.00030107,2]
[337647888,1725910232441,-6010.30057789,0.00030107,2]
[337647917,1725910238384,-18889.69942211,0.00030107,2]
[337647919,1725910238398,-164.1136667,0.00030221,2]
[337647921,1725910238408,-1500.0,0.00030267,2]
[337647923,1725910238418,-2375.39828589,0.00030433,2]
[337647925,1725910238428,-1500.0,0.00030533,2]
[337647927,1725910238437,-1500.0,0.000308,2]
[337647929,1725910238447,-1500.0,0.00031067,2]
[337647931,1725910238456,-1500.0,0.00031333,2]
[337647933,1725910238466,-1500.0,0.000316,2]
[337647935,1725910238475,-2375.39828586,0.00031668,2]
[337647937,1725910238485,-182.298338,0.00031684,30]
[337647939,1725910238494,-1500.0,0.00031867,2]
[337647941,1725910238504,-500.0,0.00032015,2]
[337647943,1725910238514,-1500.0,0.00032133,2]
[337647945,1725910238524,-1500.0,0.000324,2]
[337647948,1725910238536,-706.918206,0.00032515,2]
[337647950,1725910238547,-6000.0,0.000326,2]
[337647952,1725910238558,-1500.0,0.00032667,2]
[337647954,1725910238568,-872.28737332,0.00032766,2]
[337647956,1725910238578,-500.0,0.00032877,2]
[337647959,1725910238588,-23250.7463298,0.00032877,2]
[337647961,1725910238600,-2375.39828586,0.00032903,2]
[337647963,1725910238611,-1500.0,0.00032933,2]
[337647966,1725910238622,-3000.0,0.00033,4]
[337647968,1725910238631,-165.0,0.00033107,2]
[337647970,1725910238640,-261.0,0.00033116,2]
[337647972,1725910238649,-2172.36659935,0.00033151,2]
[337647974,1725910238659,-2172.36659934,0.00033152,2]
[337647976,1725910238673,-2172.36659934,0.00033153,2]
[337647978,1725910238682,-2172.36659934,0.00033154,2]
[337647980,1725910238692,-2172.36659934,0.00033155,2]
[337647982,1725910238702,-170.83,0.0003319,3]
[337647984,1725910238713,-174882.43526,0.00033199,2]
[337647986,1725910238723,-1500.0,0.000332,2]
[337647988,1725910238733,-500.0,0.0003325,7]
[337647990,1725910238742,-500.0,0.0003325,7]
[337647992,1725910238752,-500.0,0.0003325,7]
[337647994,1725910238761,-500.0,0.0003325,7]
[337647996,1725910238771,-500.0,0.0003325,7]
[337647999,1725910238781,-500.0,0.0003325,7]
[337648001,1725910238793,-500.0,0.0003325,7]
[337648003,1725910238802,-500.0,0.0003325,7]
[337648005,1725910238812,-500.0,0.0003325,7]
[337648007,1725910238823,-500.0,0.0003325,7]
[337648009,1725910238832,-500.0,0.0003325,7]
[337648011,1725910238842,-500.0,0.0003325,7]
[337648013,1725910238852,-500.0,0.0003325,7]
[337648015,1725910238862,-500.0,0.0003325,7]
[337648017,1725910238873,-500.0,0.0003325,7]
[337648019,1725910238883,-500.0,0.0003325,7]
[337648021,1725910238892,-153.7358282,0.0003325,7]
[337648023,1725910238904,-561.00541296,0.0003325,7]
[337648025,1725910238914,-500.0,0.0003325,7]
[337648027,1725910238923,-500.0,0.0003325,7]
[337648029,1725910238934,-500.0,0.0003325,7]
[337648031,1725910238944,-500.0,0.0003325,7]
[337648033,1725910238954,-500.0,0.0003325,7]
[337648035,1725910238963,-500.0,0.0003325,7]
[337648037,1725910238973,-500.0,0.0003325,7]
[337648039,1725910238983,-500.0,0.0003325,7]
[337648042,1725910238993,-500.0,0.0003325,7]
[337648044,1725910239003,-500.0,0.0003325,7]
[337648046,1725910239012,-500.0,0.0003325,7]
[337648048,1725910239024,-500.0,0.0003325,7]
[337648050,1725910239037,-500.0,0.0003325,7]
[337648052,1725910239048,-500.0,0.0003325,7]
[337648054,1725910239058,-500.0,0.0003325,7]
[337648056,1725910239068,-500.0,0.0003325,7]
[337648058,1725910239078,-500.0,0.0003325,7]
[337648060,1725910239087,-500.0,0.0003325,7]
[337648062,1725910239099,-500.0,0.0003325,7]
[337648064,1725910239112,-500.0,0.0003325,7]
[337648067,1725910239124,-500.0,0.0003325,7]
[337648069,1725910239137,-500.0,0.0003325,7]
[337648071,1725910239148,-500.0,0.0003325,7]
[337648073,1725910239158,-500.0,0.0003325,7]
[337648075,1725910239168,-500.0,0.0003325,7]
[337648077,1725910239178,-500.0,0.0003325,7]
[337648079,1725910239187,-500.0,0.0003325,7]
[337648082,1725910239198,-500.0,0.0003325,7]
[337648084,1725910239210,-500.0,0.0003325,7]
[337648086,1725910239221,-500.0,0.0003325,7]
[337648088,1725910239232,-500.0,0.0003325,7]
[337648091,1725910239243,-500.0,0.0003325,7]
[337648093,1725910239254,-500.0,0.0003325,7]
[337648095,1725910239264,-500.0,0.0003325,7]
[337648097,1725910239273,-500.0,0.0003325,7]
[337648099,1725910239283,-500.0,0.0003325,7]
[337648101,1725910239294,-500.0,0.0003325,7]
[337648103,1725910239303,-500.0,0.0003325,7]
[337648105,1725910239314,-500.0,0.0003325,7]
[337648107,1725910239323,-500.0,0.0003325,7]
[337648109,1725910239333,-500.0,0.0003325,7]
[337648111,1725910239345,-500.0,0.0003325,7]
[337648113,1725910239355,-500.0,0.0003325,7]
[337648115,1725910239366,-500.0,0.0003325,7]
[337648117,1725910239376,-500.0,0.0003325,7]
[337648119,1725910239386,-500.0,0.0003325,7]
[337648121,1725910239396,-500.0,0.0003325,7]
[337648123,1725910239406,-500.0,0.0003325,7]
[337648125,1725910239416,-500.0,0.0003325,7]
[337648128,1725910239426,-151.0,0.00033251,14]
[337648130,1725910239435,-151.0,0.00033251,14]
[337648132,1725910239446,-151.0,0.00033251,14]
[337648134,1725910239455,-151.0,0.00033251,14]
[337648136,1725910239465,-264.651072,0.00033251,14]
[337648138,1725910239475,-151.0,0.00033251,14]
[337648140,1725910239485,-151.0,0.00033251,14]
[337648142,1725910239496,-212.86892283,0.00033251,7]
[337648144,1725910239508,-500.0,0.00033251,7]
[337648147,1725910239519,-177.67601495,0.00033251,7]
[337648149,1725910239530,-500.0,0.00033251,7]
[337648151,1725910239540,-328.29015309,0.00033251,7]
[337648153,1725910239550,-410.01598003,0.00033252,2]
[337648155,1725910239558,-151.0,0.00033252,14]
[337648157,1725910239568,-151.0,0.00033252,14]
[337648159,1725910239578,-151.0,0.00033252,14]
[337648161,1725910239589,-151.0,0.00033252,14]
[337648163,1725910239598,-151.0,0.00033252,14]
[337648165,1725910239607,-151.0,0.00033252,14]
[337648167,1725910239617,-151.0,0.00033252,14]
[337648169,1725910239629,-151.0,0.00033252,14]
[337648170,1725910239640,-151.0,0.00033252,14]
[337648171,1725910239650,-151.0,0.00033252,14]
[337648172,1725910239660,-17693.48770013,0.00033252,21]
[337648173,1725910239670,-19319.03935356,0.00033252,5]
[337648212,1725910240538,-38257.17125571,0.00033252,5]
[337648645,1725910246755,-854.18,0.00033189,3]
[337648646,1725910246765,-77691.37351276,0.00033252,5]
[337648844,1725910618276,10002.96384335,0.00028,120]
[337648850,1725910762086,166.757036,0.0002619,2]
[337648852,1725910802715,377.05766093,0.00026454,2]
[337648854,1725910987165,180.39009,0.00024518,2]
[337648858,1725911289197,151.28821919,0.00024469,2]
[337648859,1725911297496,176.1204346,0.00024186,2]
[337648860,1725911301390,22903.8956039,0.0002446,2]
[337648863,1725911352195,-267.11401726,0.00025304,2]
[337648864,1725911352218,-166.666666,0.00025323,2]
[337648865,1725911352240,-300.0,0.00025374,2]
[337648866,1725911352262,-300.0,0.00025374,2]
[337648867,1725911352283,-193.0,0.00025374,10]
[337648868,1725911352304,-1615.03823087,0.00025375,2]
[337648886,1725911434675,-686.74844726,0.00025375,2]
[337648893,1725911434739,-1080.36557,0.00025375,2]
[337648935,1725911438412,-21517.84775187,0.00025375,2]
[337648936,1725911438421,-251.0,0.00025404,2]
[337648937,1725911438431,-3000.0,0.00025477,2]
[337648938,1725911438440,-201.6142409,0.00025508,2]
[337648939,1725911438451,-1484.62392868,0.00025527,2]
[337648940,1725911438460,-913.600557,0.00025539,2]
[337648941,1725911438475,-4283.2880768,0.00025597,2]
[337648942,1725911438485,-808.7247511,0.00025627,2]
[337648943,1725911438494,-250.0,0.00025679,2]
[337648944,1725911438504,-2318.7597607,0.00025712,2]
[337648945,1725911438513,-2127.94889,0.00025714,2]
[337648946,1725911438523,-1203.52511,0.00025769,2]
[337648947,1725911438533,-227.1291972,0.00025796,2]
[337648948,1725911438542,-1318.6492554,0.00025814,2]
[337648949,1725911438551,-250.0,0.00025908,2]
[337648950,1725911438561,-250.0,0.00025979,2]
[337648951,1725911438570,-250.0,0.0002605,2]
[337648952,1725911438580,-250.0,0.00026121,2]
[337648953,1725911438589,-2132.4617399,0.00026172,2]
[337648954,1725911438601,-250.0,0.00026192,2]
[337648955,1725911438610,-250.0,0.00026263,2]
[337648956,1725911438621,-250.0,0.00026334,2]
[337648957,1725911438631,-250.0,0.00026405,2]
[337648958,1725911438641,-250.0,0.00026476,2]
[337648959,1725911438650,-250.0,0.00026547,2]
[337648960,1725911438660,-250.0,0.00026618,2]
[337648961,1725911438670,-250.0,0.00026689,2]
[337648962,1725911438679,-250.0,0.0002676,2]
[337648963,1725911438688,-250.0,0.00026831,2]
[337648964,1725911438698,-250.0,0.00026902,2]
[337648965,1725911438707,-250.0,0.00026973,2]
[337648966,1725911438717,-250.0,0.00027044,2]
[337648967,1725911438726,-180.39009,0.00027098,2]
[337648968,1725911438736,-250.0,0.00027115,2]
[337648969,1725911438746,-250.0,0.00027186,2]
[337648970,1725911438757,-250.0,0.00027257,2]
[337648971,1725911438767,-206.56678937,0.00027291,2]
[337648972,1725911438776,-1484.62392866,0.00027463,2]
[337648973,1725911438786,-1484.62392866,0.00029399,2]
[337648974,1725911438795,-1500.0,0.0003,2]
[337648975,1725911438805,-166.0,0.0003,2]
[337648976,1725911438814,-1500.0,0.000304,2]
[337648977,1725911438824,-24475.39244151,0.000304,2]
[337648978,1725911438837,-343.518,0.000304,2]
[337648994,1725911441369,-66717.24525764,0.000304,2]
[337648995,1725911441379,-369.826767,0.0003062,2]
[337648996,1725911441388,-369.826767,0.00030628,2]
[337648997,1725911441398,-369.826767,0.00030636,2]
[337648998,1725911441408,-369.826767,0.00030644,2]
[337648999,1725911441418,-369.826767,0.00030652,2]
[337649001,1725911441427,-369.826767,0.0003066,2]
[337649003,1725911441438,-369.826767,0.00030668,2]
[337649005,1725911441449,-369.826767,0.00030676,2]
[337649007,1725911441459,-369.826767,0.00030684,2]
[337649008,1725911441469,-369.826767,0.00030692,2]
[337649009,1725911441479,-187.12011987,0.000307,2]
[337649010,1725911441489,-369.826767,0.000307,2]
[337649011,1725911441500,-369.826767,0.00030708,2]
[337649012,1725911441510,-369.826767,0.00030716,2]
[337649013,1725911441520,-369.826767,0.00030724,2]
[337649014,1725911441530,-369.826767,0.00030733,2]
[337649015,1725911441540,-369.826767,0.00030741,2]
[337649016,1725911441550,-369.826767,0.00030749,2]
[337649017,1725911441559,-369.826767,0.00030757,2]
[337649018,1725911441569,-369.826767,0.00030765,2]
[337649019,1725911441579,-369.826767,0.00030773,2]
[337649020,1725911441590,-1500.0,0.000308,2]
[337649021,1725911441600,-927.29974157,0.00031088,2]
[337649022,1725911441610,-500.0,0.00031176,2]
[337649023,1725911441625,-500.0,0.00031176,2]
[337649024,1725911441634,-500.0,0.00031176,2]
[337649025,1725911441644,-500.0,0.00031176,2]
[337649026,1725911441655,-500.0,0.00031176,2]
[337649027,1725911441664,-500.0,0.00031176,2]
[337649028,1725911441674,-500.0,0.00031176,2]
[337649029,1725911441684,-500.0,0.00031176,2]
[337649030,1725911441694,-500.0,0.00031176,2]
[337649031,1725911441703,-500.0,0.00031176,2]
[337649032,1725911441713,-500.0,0.00031176,2]
[337649033,1725911441723,-500.0,0.00031176,2]
[337649034,1725911441732,-228.27028467,0.00031176,2]
[337649035,1725911441742,-500.0,0.00031176,2]
[337649036,1725911441752,-500.0,0.00031176,2]
[337649037,1725911441761,-500.0,0.00031176,2]
[337649038,1725911441771,-500.0,0.00031176,2]
[337649039,1725911441781,-500.0,0.00031176,2]
[337649040,1725911441790,-500.0,0.00031176,2]
[337649041,1725911441799,-500.0,0.00031176,2]
[337649042,1725911441809,-500.0,0.00031176,2]
[337649043,1725911441820,-500.0,0.00031176,2]
[337649044,1725911441829,-500.0,0.00031176,2]
[337649045,1725911441838,-500.0,0.00031176,2]
[337649046,1725911441849,-500.0,0.00031176,2]